[Event "FIDE Grand Swiss 2023"]
[Site "Villa Marina, Douglas, Isle of Man"]
[Date "2023.10.27"]
[Round "3.12"]
[White "Deac, Bogdan-Daniel"]
[Black "Melkumyan, Hrant"]
[Result "1/2-1/2"]
[WhiteElo "2701"]
[BlackElo "2650"]
[EventDate "2023.10.25"]
[ECO "C65"]
[PlyCount "160"]
[BlackFideId "13302485"]
[TimeControl "40/100 + 20/50 + 15 + 30s/move"]
[WhiteFideId "1226380"]

1.e4 {[%clk 01:40:57] [%emt 00:00:02]} 1...e5 {[%clk 01:40:49] [%emt 00:00:10]} 
2.Nf3 {[%clk 01:41:21] [%emt 00:00:06]} 2...Nc6 {[%clk 01:41:11] [%emt
00:00:08]} 3.Bb5 {[%clk 01:34:57] [%emt 00:06:55]} 3...Nf6 {[%clk 01:41:29]
[%emt 00:00:12]} 4.d3 {[%clk 01:33:57] [%emt 00:01:30]} 4...Bc5 {[%clk 01:41:39]
[%emt 00:00:20]} 5.c3 {[%clk 01:34:03] [%emt 00:00:24]} 5...O-O {[%clk 01:40:13]
[%emt 00:01:56]} 6.O-O {[%clk 01:34:15] [%emt 00:00:17]} 6...Re8 {[%clk
01:40:23] [%emt 00:00:20]} 7.Bc4 {[%clk 01:23:57] [%emt 00:10:49]} 7...d6 
{[%clk 01:28:43] [%emt 00:12:09]} 8.Re1 {[%clk 01:17:30] [%emt 00:06:58]} 
8...a6 {[%clk 01:27:26] [%emt 00:01:47]} 9.a4 {[%clk 01:14:19] [%emt 00:03:41]} 
9...Ba7 {[%clk 01:24:52] [%emt 00:03:04]} 10.h3 {[%clk 01:07:27] [%emt
00:07:21]} 10...Be6 {[%clk 01:23:39] [%emt 00:01:43]} 11.Bxe6 {[%clk 01:01:09]
[%emt 00:06:49]} 11...Rxe6 {[%clk 01:23:11] [%emt 00:00:55]} 12.b4 {[%clk
01:01:12] [%emt 00:00:30]} 12...d5 {[%clk 01:19:33] [%emt 00:04:08]} 13.Qb3 
{[%clk 00:56:11] [%emt 00:05:31]} 13...dxe4 {[%clk 01:11:38] [%emt 00:08:25]} 
14.dxe4 {[%clk 00:54:03] [%emt 00:02:38]} 14...Qd3 {[%clk 01:11:21] [%emt
00:00:46]} 15.Be3 {[%clk 00:49:00] [%emt 00:05:34]} 15...Nd4 {[%clk 01:06:49]
[%emt 00:05:01]} 16.Bxd4 {[%clk 00:47:56] [%emt 00:01:35]} 16...exd4 {[%clk
01:07:10] [%emt 00:00:08]} 17.Rd1 {[%clk 00:24:47] [%emt 00:23:39]} 17...Qxe4 
{[%clk 01:00:13] [%emt 00:07:27]} 18.Ng5 {[%clk 00:24:58] [%emt 00:00:19]} 
18...Qe5 {[%clk 00:43:27] [%emt 00:17:16]} 19.Nxe6 {[%clk 00:25:13] [%emt
00:00:16]} 19...fxe6 {[%clk 00:43:53] [%emt 00:00:04]} 20.Ra2 {[%clk 00:19:50]
[%emt 00:05:52]} 20...Nd5 {[%clk 00:38:02] [%emt 00:06:21]} 21.cxd4 {[%clk
00:06:07] [%emt 00:14:14]} 21...Bxd4 {[%clk 00:38:15] [%emt 00:00:15]} 22.Qc4 
{[%clk 00:06:29] [%emt 00:00:08]} 22...Ba7 {[%clk 00:36:00] [%emt 00:02:46]} 
23.Re2 {[%clk 00:06:44] [%emt 00:00:16]} 23...Qf5 {[%clk 00:34:31] [%emt
00:01:58]} 24.Qg4 {[%clk 00:06:54] [%emt 00:00:20]} 24...Qxg4 {[%clk 00:30:11]
[%emt 00:04:51]} 25.hxg4 {[%clk 00:07:15] [%emt 00:00:08]} 25...Rf8 {[%clk
00:30:39] [%emt 00:00:02]} 26.Rdd2 {[%clk 00:07:21] [%emt 00:00:24]} 26...Rf4 
{[%clk 00:23:15] [%emt 00:07:53]} 27.Rxe6 {[%clk 00:06:59] [%emt 00:00:53]} 
27...c6 {[%clk 00:23:43] [%emt 00:00:02]} 28.b5 {[%clk 00:05:50] [%emt
00:01:40]} 28...Kf7 {[%clk 00:22:32] [%emt 00:01:40]} 29.Re1 {[%clk 00:05:19]
[%emt 00:01:01]} 29...axb5 {[%clk 00:18:51] [%emt 00:04:12]} 30.axb5 {[%clk
00:05:47] [%emt 00:00:02]} 30...Rxg4 {[%clk 00:19:07] [%emt 00:00:13]} 31.bxc6 
{[%clk 00:04:28] [%emt 00:01:50]} 31...bxc6 {[%clk 00:19:24] [%emt 00:00:12]} 
32.Nc3 {[%clk 00:03:28] [%emt 00:01:29]} 32...Rf4 {[%clk 00:10:16] [%emt
00:09:39]} 33.Nxd5 {[%clk 00:02:22] [%emt 00:01:36]} 33...cxd5 {[%clk 00:10:41]
[%emt 00:00:05]} 34.Re5 {[%clk 00:02:39] [%emt 00:00:12]} 34...Bd4 {[%clk
00:10:00] [%emt 00:01:12]} 35.Rxd5 {[%clk 00:02:52] [%emt 00:00:18]} 35...Bf6 
{[%clk 00:10:27] [%emt 00:00:01]} 36.g3 {[%clk 00:00:41] [%emt 00:02:42]} 
36...Rb4 {[%clk 00:10:55] [%emt 00:00:02]} 37.Ra2 {[%clk 00:00:35] [%emt
00:00:37]} 37...Kg6 {[%clk 00:11:17] [%emt 00:00:07]} 38.Raa5 {[%clk 00:00:59]
[%emt 00:00:06]} 38...h6 {[%clk 00:11:06] [%emt 00:00:41]} 39.Kg2 {[%clk
00:00:33] [%emt 00:00:56]} 39...Rb2 {[%clk 00:10:59] [%emt 00:00:37]} 40.Rf5 
{[%clk 00:00:34] [%emt 00:00:28]} 40...Rc2 {[%clk 00:11:22] [%emt 00:00:08]} 
41.Kh3 {[%clk 00:00:32] [%emt 00:00:32]} 41...Rb2 {[%clk 00:09:31] [%emt
00:02:21]} 42.f4 {[%clk 00:00:32] [%emt 00:00:30]} 42...Rb3 {[%clk 00:09:15]
[%emt 00:00:45]} 43.Rfd5 {[%clk 00:00:32] [%emt 00:00:31]} 43...Rc3 {[%clk
00:09:09] [%emt 00:00:36]} 44.Kg4 {[%clk 00:00:31] [%emt 00:00:31]} 44...Rc4 
{[%clk 00:08:17] [%emt 00:01:22]} 45.Rdb5 {[%clk 00:47:10] [%emt 00:03:51]} 
45...Rd4 {[%clk 00:58:34] [%emt 00:00:13]} 46.Ra6 {[%clk 00:34:55] [%emt
00:12:45]} 46...Rc4 {[%clk 00:58:42] [%emt 00:00:22]} 47.Ra3 {[%clk 00:33:40]
[%emt 00:01:45]} 47...Rd4 {[%clk 00:58:59] [%emt 00:00:13]} 48.Kf3 {[%clk
00:31:48] [%emt 00:02:21]} 48...Rc4 {[%clk 00:58:16] [%emt 00:01:13]} 49.g4 
{[%clk 00:30:35] [%emt 00:01:43]} 49...Rc1 {[%clk 00:58:33] [%emt 00:00:13]} 
50.Kg2 {[%clk 00:25:38] [%emt 00:05:28]} 50...Rc4 {[%clk 00:56:35] [%emt
00:02:27]} 51.Kg3 {[%clk 00:24:45] [%emt 00:01:23]} 51...Rc1 {[%clk 00:56:45]
[%emt 00:00:20]} 52.Rf3 {[%clk 00:23:54] [%emt 00:01:22]} 52...Ra1 {[%clk
00:56:23] [%emt 00:00:52]} 53.Rb6 {[%clk 00:22:36] [%emt 00:01:47]} 53...Ra4 
{[%clk 00:55:52] [%emt 00:01:02]} 54.Rc6 {[%clk 00:21:52] [%emt 00:01:14]} 
54...Rb4 {[%clk 00:56:15] [%emt 00:00:07]} 55.Ra6 {[%clk 00:21:24] [%emt
00:00:58]} 55...Rc4 {[%clk 00:56:34] [%emt 00:00:11]} 56.Rb3 {[%clk 00:20:26]
[%emt 00:01:27]} 56...Rc1 {[%clk 00:56:36] [%emt 00:00:29]} 57.Ra4 {[%clk
00:20:23] [%emt 00:00:32]} 57...Rc2 {[%clk 00:49:55] [%emt 00:07:12]} 58.Rf3 
{[%clk 00:20:06] [%emt 00:00:47]} 58...Rc1 {[%clk 00:48:38] [%emt 00:01:47]} 
59.Kg2 {[%clk 00:20:17] [%emt 00:00:18]} 59...Rc2+ {[%clk 00:48:54] [%emt
00:00:15]} 60.Kh3 {[%clk 00:20:21] [%emt 00:00:25]} 60...Rc1 {[%clk 00:48:33]
[%emt 00:00:52]} 61.Rg3 {[%clk 00:20:33] [%emt 00:00:18]} 61...Rc5 {[%clk
00:48:35] [%emt 00:00:27]} 62.Ra6 {[%clk 00:13:14] [%emt 00:07:49]} 62...Rb5 
{[%clk 00:48:48] [%emt 00:00:18]} 63.Rg1 {[%clk 00:02:45] [%emt 00:10:58]} 
63...Rb3+ {[%clk 00:49:08] [%emt 00:00:10]} 64.Kh2 {[%clk 00:00:55] [%emt
00:02:20]} 64...Rb2+ {[%clk 00:49:14] [%emt 00:00:24]} 65.Kg3 {[%clk 00:00:32]
[%emt 00:00:53]} 65...Rb3+ {[%clk 00:49:34] [%emt 00:00:10]} 66.Kf2 {[%clk
00:00:32] [%emt 00:00:31]} 66...Rb2+ {[%clk 00:49:59] [%emt 00:00:05]} 67.Kf3 
{[%clk 00:00:35] [%emt 00:00:23]} 67...Rb3+ {[%clk 00:50:26] [%emt 00:00:06]} 
68.Ke2 {[%clk 00:00:39] [%emt 00:00:26]} 68...Rb2+ {[%clk 00:50:53] [%emt
00:00:04]} 69.Kd3 {[%clk 00:00:35] [%emt 00:00:34]} 69...Rb3+ {[%clk 00:51:15]
[%emt 00:00:08]} 70.Kc2 {[%clk 00:00:32] [%emt 00:00:31]} 70...Rb2+ {[%clk
00:51:41] [%emt 00:00:06]} 71.Kc1 {[%clk 00:00:32] [%emt 00:00:30]} 71...Rb5 
{[%clk 00:52:04] [%emt 00:00:06]} 72.Rc6 {[%clk 00:00:38] [%emt 00:00:24]} 
72...Ra5 {[%clk 00:52:28] [%emt 00:00:07]} 73.Kc2 {[%clk 00:00:38] [%emt
00:00:30]} 73...Ra2+ {[%clk 00:52:32] [%emt 00:00:26]} 74.Kb3 {[%clk 00:00:35]
[%emt 00:00:32]} 74...Rb2+ {[%clk 00:52:49] [%emt 00:00:13]} 75.Kc4 {[%clk
00:00:31] [%emt 00:00:35]} 75...Rf2 {[%clk 00:52:42] [%emt 00:00:36]} 76.f5+ 
{[%clk 00:00:39] [%emt 00:00:23]} 76...Kg5 {[%clk 00:53:08] [%emt 00:00:03]} 
77.Kd5 {[%clk 00:01:02] [%emt 00:00:08]} 77...Rd2+ {[%clk 00:50:34] [%emt
00:03:03]} 78.Ke4 {[%clk 00:14:39] [%emt 00:01:52]} 78...Rd4+ {[%clk 01:05:55]
[%emt 00:00:10]} 79.Kf3 {[%clk 00:15:07] [%emt 00:00:03]} 79...Rf4+ {[%clk
01:06:17] [%emt 00:00:07]} 80.Ke2 {[%clk 00:15:34] [%emt 00:00:04]} 80...Rxg4 
{[%clk 01:06:38] [%emt 00:00:09]} 1/2-1/2

[Event "FIDE Grand Swiss 2023"]
[Site "Villa Marina, Douglas, Isle of Man"]
[Date "2023.10.27"]
[Round "3.13"]
[White "Ter-Sahakyan, Samvel"]
[Black "Sevian, Samuel"]
[Result "0-1"]
[WhiteElo "2618"]
[BlackElo "2698"]
[EventDate "2023.10.25"]
[ECO "A62"]
[PlyCount "58"]
[BlackFideId "2040506"]
[TimeControl "40/100 + 20/50 + 15 + 30s/move"]
[WhiteFideId "13302531"]

1.d4 {[%clk 01:40:53] [%emt 00:00:06]} 1...Nf6 {[%clk 01:40:02] [%emt 00:00:59]} 
2.c4 {[%clk 01:41:12] [%emt 00:00:11]} 2...e6 {[%clk 01:40:26] [%emt 00:00:06]} 
3.g3 {[%clk 01:40:35] [%emt 00:01:07]} 3...c5 {[%clk 01:39:45] [%emt 00:01:10]} 
4.d5 {[%clk 01:38:32] [%emt 00:02:33]} 4...exd5 {[%clk 01:38:35] [%emt
00:01:41]} 5.cxd5 {[%clk 01:38:42] [%emt 00:00:19]} 5...d6 {[%clk 01:38:40]
[%emt 00:00:24]} 6.Nc3 {[%clk 01:39:01] [%emt 00:00:13]} 6...g6 {[%clk 01:38:24]
[%emt 00:00:46]} 7.Nf3 {[%clk 01:39:14] [%emt 00:00:16]} 7...Bg7 {[%clk
01:38:32] [%emt 00:00:21]} 8.Bg2 {[%clk 01:39:40] [%emt 00:00:05]} 8...O-O 
{[%clk 01:38:47] [%emt 00:00:15]} 9.O-O {[%clk 01:40:04] [%emt 00:00:06]} 
9...Re8 {[%clk 01:39:05] [%emt 00:00:10]} 10.Re1 {[%clk 01:33:47] [%emt
00:06:49]} 10...a6 {[%clk 01:06:44] [%emt 00:32:52]} 11.a4 {[%clk 01:30:43]
[%emt 00:03:34]} 11...Nbd7 {[%clk 01:04:52] [%emt 00:02:22]} 12.Nd2 {[%clk
01:10:09] [%emt 00:21:03]} 12...Rb8 {[%clk 01:02:58] [%emt 00:02:25]} 13.a5 
{[%clk 01:05:50] [%emt 00:04:49]} 13...b5 {[%clk 00:58:07] [%emt 00:05:21]} 
14.axb6 {[%clk 01:05:57] [%emt 00:00:23]} 14...Nxb6 {[%clk 00:58:25] [%emt
00:00:12]} 15.h3 {[%clk 00:57:10] [%emt 00:09:16]} 15...Nfd7 {[%clk 00:54:20]
[%emt 00:04:36]} 16.Qc2 {[%clk 00:45:00] [%emt 00:12:39]} 16...Ne5 {[%clk
00:51:31] [%emt 00:03:19]} 17.b3 {[%clk 00:43:42] [%emt 00:01:48]} 17...c4 
{[%clk 00:48:51] [%emt 00:03:10]} 18.bxc4 {[%clk 00:37:34] [%emt 00:06:39]} 
18...Nbxc4 {[%clk 00:42:06] [%emt 00:07:15]} 19.Nxc4 {[%clk 00:32:56] [%emt
00:05:07]} 19...Nxc4 {[%clk 00:41:39] [%emt 00:00:57]} 20.Ra4 {[%clk 00:33:21]
[%emt 00:00:05]} 20...Nb6 {[%clk 00:39:17] [%emt 00:02:52]} 21.Ra3 {[%clk
00:28:10] [%emt 00:05:42]} 21...Bf5 {[%clk 00:29:39] [%emt 00:10:08]} 22.e4 
{[%clk 00:27:11] [%emt 00:01:28]} 22...Qc8 {[%clk 00:29:04] [%emt 00:01:05]} 
23.Kh2 {[%clk 00:12:58] [%emt 00:14:44]} 23...Bd7 {[%clk 00:21:36] [%emt
00:07:58]} 24.Re2 {[%clk 00:13:24] [%emt 00:00:04]} 24...Rb7 {[%clk 00:18:45]
[%emt 00:03:21]} 25.Na2 {[%clk 00:06:28] [%emt 00:07:26]} 25...Bb5 {[%clk
00:14:23] [%emt 00:04:52]} 26.Qxc8 {[%clk 00:04:57] [%emt 00:02:01]} 26...Rxc8 
{[%clk 00:14:39] [%emt 00:00:14]} 27.Re1 {[%clk 00:05:22] [%emt 00:00:05]} 
27...Rc2 {[%clk 00:15:00] [%emt 00:00:08]} 28.Nb4 {[%clk 00:03:34] [%emt
00:02:19]} 28...Rxf2 {[%clk 00:14:53] [%emt 00:00:37]} 29.Nc6 {[%clk 00:00:44]
[%emt 00:03:20]} 29...Nc4 {[%clk 00:14:06] [%emt 00:01:16]} 0-1

[Event "FIDE Grand Swiss 2023"]
[Site "Villa Marina, Douglas, Isle of Man"]
[Date "2023.10.27"]
[Round "3.14"]
[White "Shankland, Sam"]
[Black "Najer, Evgeniy"]
[Result "1/2-1/2"]
[WhiteElo "2698"]
[BlackElo "2648"]
[EventDate "2023.10.25"]
[ECO "D02"]
[PlyCount "66"]
[BlackFideId "4118987"]
[TimeControl "40/100 + 20/50 + 15 + 30s/move"]
[WhiteFideId "2004887"]

1.d4 {[%clk 01:40:51] [%emt 00:00:08]} 1...d5 {[%clk 01:40:41] [%emt 00:00:19]} 
2.Nf3 {[%clk 01:41:13] [%emt 00:00:09]} 2...Nf6 {[%clk 01:41:05] [%emt
00:00:05]} 3.Bf4 {[%clk 01:41:38] [%emt 00:00:05]} 3...Bf5 {[%clk 01:37:54]
[%emt 00:03:41]} 4.e3 {[%clk 01:40:50] [%emt 00:01:17]} 4...e6 {[%clk 01:38:13]
[%emt 00:00:12]} 5.Nbd2 {[%clk 01:41:07] [%emt 00:00:13]} 5...Bd6 {[%clk
01:37:17] [%emt 00:01:27]} 6.Ne5 {[%clk 01:39:53] [%emt 00:01:43]} 6...Nbd7 
{[%clk 01:31:46] [%emt 00:06:01]} 7.Be2 {[%clk 01:36:40] [%emt 00:03:42]} 
7...h6 {[%clk 01:24:47] [%emt 00:07:30]} 8.O-O {[%clk 01:34:10] [%emt 00:03:00]} 
8...Bxe5 {[%clk 01:11:30] [%emt 00:13:48]} 9.dxe5 {[%clk 01:33:55] [%emt
00:00:44]} 9...Ne4 {[%clk 01:11:57] [%emt 00:00:03]} 10.Nxe4 {[%clk 01:29:49]
[%emt 00:04:36]} 10...Bxe4 {[%clk 01:09:49] [%emt 00:02:38]} 11.f3 {[%clk
01:29:26] [%emt 00:00:53]} 11...Bg6 {[%clk 01:09:49] [%emt 00:00:31]} 12.c4 
{[%clk 01:27:39] [%emt 00:02:16]} 12...Nb6 {[%clk 01:04:27] [%emt 00:05:52]} 
13.c5 {[%clk 01:11:38] [%emt 00:16:31]} 13...Nd7 {[%clk 00:47:19] [%emt
00:17:38]} 14.Rc1 {[%clk 01:06:50] [%emt 00:05:18]} 14...c6 {[%clk 00:46:50]
[%emt 00:00:59]} 15.b4 {[%clk 01:05:57] [%emt 00:01:23]} 15...O-O {[%clk
00:47:01] [%emt 00:00:19]} 16.Qd4 {[%clk 01:05:27] [%emt 00:01:00]} 16...Qe7 
{[%clk 00:42:56] [%emt 00:04:35]} 17.Rc3 {[%clk 01:03:52] [%emt 00:02:05]} 
17...Rfc8 {[%clk 00:36:47] [%emt 00:06:39]} 18.Rfc1 {[%clk 01:03:52] [%emt
00:00:30]} 18...a5 {[%clk 00:34:14] [%emt 00:03:03]} 19.b5 {[%clk 01:03:35]
[%emt 00:00:47]} 19...cxb5 {[%clk 00:34:39] [%emt 00:00:05]} 20.Bxb5 {[%clk
01:03:49] [%emt 00:00:16]} 20...Nb8 {[%clk 00:35:05] [%emt 00:00:04]} 21.Qa4 
{[%clk 00:59:39] [%emt 00:04:40]} 21...Nc6 {[%clk 00:35:30] [%emt 00:00:05]} 
22.a3 {[%clk 00:58:45] [%emt 00:01:24]} 22...Rc7 {[%clk 00:33:44] [%emt
00:02:16]} 23.Bg3 {[%clk 00:58:33] [%emt 00:00:42]} 23...Qd8 {[%clk 00:31:04]
[%emt 00:03:10]} 24.Bh4 {[%clk 00:53:00] [%emt 00:06:03]} 24...Qf8 {[%clk
00:30:42] [%emt 00:00:51]} 25.Bxc6 {[%clk 00:49:27] [%emt 00:04:04]} 25...Rxc6 
{[%clk 00:28:09] [%emt 00:03:03]} 26.Qb5 {[%clk 00:48:45] [%emt 00:01:12]} 
26...Qc8 {[%clk 00:23:45] [%emt 00:04:54]} 27.Be7 {[%clk 00:48:12] [%emt
00:01:03]} 27...Qd7 {[%clk 00:23:16] [%emt 00:01:00]} 28.Bh4 {[%clk 00:48:06]
[%emt 00:00:35]} 28...Rac8 {[%clk 00:15:03] [%emt 00:08:42]} 29.Qxa5 {[%clk
00:42:35] [%emt 00:06:02]} 29...d4 {[%clk 00:13:54] [%emt 00:01:38]} 30.exd4 
{[%emt 00:01:04]} 30...Qxd4+ {[%clk 00:13:58] [%emt 00:00:01]} 31.Bf2 {[%clk
00:42:53] [%emt 00:00:04]} 31...Qxe5 {[%clk 00:13:34] [%emt 00:00:54]} 32.Qb4 
{[%clk 00:41:28] [%emt 00:01:55]} 32...Qc7 {[%clk 00:09:27] [%emt 00:04:37]} 
33.Rb3 {[%clk 00:37:15] [%emt 00:04:43]} 33...b6 {[%clk 00:09:36] [%emt
00:00:21]} 1/2-1/2

[Event "FIDE Grand Swiss 2023"]
[Site "Villa Marina, Douglas, Isle of Man"]
[Date "2023.10.27"]
[Round "3.15"]
[White "Martirosyan, Haik M."]
[Black "Tari, Aryan"]
[Result "1/2-1/2"]
[WhiteElo "2696"]
[BlackElo "2619"]
[EventDate "2023.10.25"]
[ECO "D41"]
[PlyCount "90"]
[BlackFideId "1510045"]
[TimeControl "40/100 + 20/50 + 15 + 30s/move"]
[WhiteFideId "13306553"]

1.d4 {[%clk 01:40:38] [%emt 00:00:21]} 1...Nf6 {[%clk 01:40:47] [%emt 00:00:13]} 
2.c4 {[%clk 01:41:02] [%emt 00:00:06]} 2...e6 {[%clk 01:41:12] [%emt 00:00:04]} 
3.Nf3 {[%clk 01:41:06] [%emt 00:00:27]} 3...d5 {[%clk 01:41:33] [%emt 00:00:10]} 
4.Nc3 {[%clk 01:41:24] [%emt 00:00:11]} 4...c5 {[%clk 01:41:56] [%emt 00:00:07]} 
5.cxd5 {[%clk 01:41:40] [%emt 00:00:14]} 5...cxd4 {[%clk 01:42:19] [%emt
00:00:07]} 6.Qxd4 {[%clk 01:42:05] [%emt 00:00:06]} 6...exd5 {[%clk 01:42:40]
[%emt 00:00:09]} 7.e4 {[%clk 01:41:41] [%emt 00:00:53]} 7...dxe4 {[%clk
01:43:01] [%emt 00:00:09]} 8.Qxd8+ {[%clk 01:42:05] [%emt 00:00:06]} 8...Kxd8 
{[%clk 01:43:28] [%emt 00:00:04]} 9.Ng5 {[%clk 01:42:24] [%emt 00:00:10]} 
9...Be6 {[%clk 01:43:53] [%emt 00:00:06]} 10.Nxe6+ {[%clk 01:41:22] [%emt
00:01:31]} 10...fxe6 {[%clk 01:44:17] [%emt 00:00:06]} 11.Bg5 {[%clk 01:41:43]
[%emt 00:00:08]} 11...Nc6 {[%clk 01:43:59] [%emt 00:00:49]} 12.Bb5 {[%clk
01:25:46] [%emt 00:16:27]} 12...Bb4 {[%clk 01:29:45] [%emt 00:14:43]} 13.O-O-O+ 
{[%clk 01:23:35] [%emt 00:02:42]} 13...Kc7 {[%clk 01:11:58] [%emt 00:18:18]} 
14.Bxf6 {[%clk 01:18:47] [%emt 00:05:17]} 14...gxf6 {[%clk 01:12:22] [%emt
00:00:06]} 15.Nxe4 {[%clk 01:19:03] [%emt 00:00:13]} 15...Rhg8 {[%clk 00:57:12]
[%emt 00:15:42]} 16.a3 {[%clk 00:56:38] [%emt 00:22:54]} 16...Be7 {[%clk
00:56:37] [%emt 00:01:05]} 17.Bc4 {[%clk 00:48:51] [%emt 00:08:16]} 17...f5 
{[%clk 00:43:57] [%emt 00:13:11]} 18.Nc3 {[%clk 00:40:08] [%emt 00:09:12]} 
18...Rae8 {[%clk 00:40:47] [%emt 00:03:41]} 19.g3 {[%clk 00:37:38] [%emt
00:03:00]} 19...Bc5 {[%clk 00:39:59] [%emt 00:01:18]} 20.Rhe1 {[%clk 00:36:18]
[%emt 00:01:50]} 20...Rg6 {[%clk 00:37:21] [%emt 00:03:08]} 21.f4 {[%clk
00:32:48] [%emt 00:04:00]} 21...a6 {[%clk 00:36:57] [%emt 00:00:56]} 22.b4 
{[%clk 00:31:46] [%emt 00:01:31]} 22...Bd4 {[%clk 00:34:50] [%emt 00:02:37]} 
23.Rd3 {[%clk 00:30:13] [%emt 00:02:02]} 23...h5 {[%clk 00:32:21] [%emt
00:02:59]} 24.Re2 {[%clk 00:22:26] [%emt 00:08:17]} 24...Kb8 {[%clk 00:29:29]
[%emt 00:03:23]} 25.Bd5 {[%clk 00:18:43] [%emt 00:04:12]} 25...Ba7 {[%clk
00:27:31] [%emt 00:02:27]} 26.Bxc6 {[%clk 00:16:07] [%emt 00:03:07]} 26...bxc6 
{[%clk 00:28:00] [%emt 00:00:01]} 27.Na4 {[%clk 00:10:28] [%emt 00:06:09]} 
27...h4 {[%clk 00:27:25] [%emt 00:01:05]} 28.Kc2 {[%clk 00:06:21] [%emt
00:04:37]} 28...hxg3 {[%clk 00:26:58] [%emt 00:00:57]} 29.hxg3 {[%clk 00:06:47]
[%emt 00:00:04]} 29...Reg8 {[%clk 00:24:19] [%emt 00:03:10]} 30.Nb2 {[%clk
00:06:15] [%emt 00:01:02]} 30...Kc7 {[%clk 00:22:46] [%emt 00:02:03]} 31.Nc4 
{[%clk 00:05:26] [%emt 00:01:18]} 31...Rxg3 {[%clk 00:22:42] [%emt 00:00:34]} 
32.Rxe6 {[%clk 00:05:35] [%emt 00:00:20]} 32...Rxd3 {[%clk 00:23:00] [%emt
00:00:13]} 33.Kxd3 {[%clk 00:06:04] [%emt 00:00:01]} 33...Rg3+ {[%clk 00:22:52]
[%emt 00:00:39]} 34.Kd2 {[%clk 00:05:23] [%emt 00:01:10]} 34...Bd4 {[%clk
00:17:47] [%emt 00:05:35]} 35.Re7+ {[%clk 00:04:36] [%emt 00:01:18]} 35...Kd8 
{[%clk 00:18:11] [%emt 00:00:06]} 36.Re6 {[%clk 00:04:09] [%emt 00:00:57]} 
36...c5 {[%clk 00:13:46] [%emt 00:04:55]} 37.bxc5 {[%clk 00:01:42] [%emt
00:02:56]} 37...Bxc5 {[%clk 00:14:14] [%emt 00:00:02]} 38.Rxa6 {[%clk 00:01:44]
[%emt 00:00:28]} 38...Rf3 {[%clk 00:14:00] [%emt 00:00:45]} 39.Ra5 {[%clk
00:00:38] [%emt 00:01:36]} 39...Bxa3 {[%clk 00:13:14] [%emt 00:01:15]} 40.Rxf5 
{[%clk 00:00:33] [%emt 00:00:36]} 40...Bc1+ {[%clk 00:11:23] [%emt 00:02:21]} 
41.Kxc1 {[%clk 00:00:49] [%emt 00:00:14]} 41...Rc3+ {[%clk 00:11:51]} 42.Kd2 
{[%clk 00:01:02] [%emt 00:00:17]} 42...Rxc4 {[%clk 00:12:20] [%emt 00:00:01]} 
43.Ke3 {[%clk 00:00:39] [%emt 00:00:54]} 43...Ke7 {[%clk 00:11:36] [%emt
00:01:13]} 44.Kf3 {[%clk 00:00:35] [%emt 00:00:34]} 44...Rc1 {[%clk 00:11:07]
[%emt 00:00:59]} 45.Ra5 {[%clk 00:00:52] [%emt 00:00:13]} 45...Kf6 {[%clk
00:11:25] [%emt 00:00:12]} 1/2-1/2